bitfinex-derivatives/quotes_ETHF0:USTF0_20250616
["timestamp","ask_amount","ask_price","bid_price","bid_amount"]
[1750039744964,0.77579,2577.8,2577.0,3.2078]
[1750039745168,5.13333626,2579.0,2577.7,3.2078]
[1750039745169,3.2078,2578.3,2577.7,3.2078]
[1750039745467,3.2078,2578.0,2577.4,3.2078]
[1750039745665,3.2078,2578.1,2577.5,7.377]
[1750039745867,3.2078,2578.4,2577.6,7.377]
[1750039746066,3.2078,2578.4,2577.5,8.34113626]
[1750039746266,3.2078,2578.1,2577.7,3.2078]
[1750039746565,3.2078,2577.9,2577.1,3.21362558]
[1750039746763,0.77596,2577.2,2576.5,3.2078]
[1750039746961,0.77596,2577.2,2576.5,10.5798]
[1750039746962,3.2078,2577.2,2576.5,10.5798]
[1750039747166,3.2078,2577.7,2576.9,3.2078]
[1750039747368,3.2078,2577.3,2576.9,3.2078]
[1750039747568,3.2078,2577.8,2576.9,3.2078]
[1750039747873,0.77602,2577.0,2576.9,10.5798]
[1750039748173,3.21362558,2577.6,2576.9,10.5798]
[1750039748375,0.77602,2577.0,2576.9,10.5798]
[1750039748577,0.77598,2577.2,2576.9,10.5798]
[1750039748777,0.77594,2577.3,2576.9,10.5798]
[1750039748970,0.77606,2576.9,2576.7,3.21362558]
[1750039749273,0.77606,2576.9,2576.7,4.57062558]
[1750039749465,0.77603,2577.0,2576.8,8.729]
[1750039749663,0.77605,2576.9,2576.8,1.357]
[1750039749865,3.2078,2577.3,2576.8,8.726]
[1750039750062,3.2078,2577.3,2576.8,1.357]
[1750039750063,0.77605,2576.9,2576.8,1.357]
[1750039750674,0.77605,2576.9,2576.8,8.726]
[1750039750977,0.77605,2576.9,2576.8,1.357]
[1750039751375,0.77608,2576.8,2576.7,0.00582558]
[1750039751676,0.77608,2576.8,2576.7,5.58e-06]
[1750039752268,3.98388,2576.8,2576.7,5.58e-06]
[1750039752879,8.98388,2576.8,2576.7,5.58e-06]
[1750039753779,3.98388,2576.8,2576.7,5.58e-06]
[1750039754180,0.77608,2576.8,2576.7,5.58e-06]
[1750039754376,2.12288,2576.8,2576.7,5.58e-06]
[1750039754773,0.77608,2576.8,2576.7,5.58e-06]
[1750039755176,3.2078,2577.1,2576.1,3.2078]
[1750039755375,0.77622,2576.4,2576.2,7.368]
[1750039755576,0.7762,2576.5,2576.2,7.367]
[1750039755781,1.3468,2577.0,2576.3,1.3326]
[1750039756183,3.28687,2577.0,2576.4,0.00582558]
[1750039756377,0.77617,2576.5,2576.4,0.00582558]
[1750039756577,0.77616,2576.6,2576.4,3.21362558]
[1750039756786,3.2078,2577.5,2576.4,3.21362558]
[1750039757073,3.2078,2577.5,2576.8,3.2078]
[1750039757277,0.77605,2577.0,2576.8,10.5748]
[1750039757480,1.3407,2577.4,2576.8,11.9074]
[1750039757680,0.77605,2576.9,2576.8,1.3326]
[1750039757881,0.77604,2577.0,2576.8,1.22607303]
[1750039758079,8.7077,2577.4,2576.7,3.2078]
[1750039758282,0.77617,2576.5,2576.4,10.58062558]
[1750039758681,0.77617,2576.5,2576.4,3.21362558]
[1750039759380,0.3952511,2576.4,2576.1,10.5728]
[1750039760483,0.3952511,2576.2,2576.1,10.5728]
[1750039760680,0.3952511,2576.2,2576.1,11.34909]
[1750039760880,0.3952511,2576.2,2576.1,16.34909]
[1750039761180,0.3952511,2576.2,2576.1,5.0]
[1750039761372,0.77626,2576.2,2576.1,3.2078]
[1750039761883,0.77625,2576.3,2576.1,3.2078]
[1750039762085,0.77626,2576.2,2576.1,3.2078]
[1750039762777,1.2705,2576.8,2576.1,3.2078]
[1750039762977,1.6657511,2576.8,2576.1,3.2078]
[1750039763179,0.77619,2576.5,2576.4,3.2078]
[1750039763687,0.77623,2576.3,2576.2,5.13333626]
[1750039763883,0.77622,2576.4,2576.2,5.13333626]
[1750039764180,0.77623,2576.3,2576.0,10.57862558]
[1750039764482,1.94037,2576.6,2576.0,10.57862558]
[1750039764786,0.77628,2576.2,2576.0,10.57862558]
[1750039764971,0.77629,2576.1,2576.0,3.21362558]
[1750039765176,0.77628,2576.2,2576.0,3.21362558]
[1750039765376,0.78206558,2576.3,2576.0,3.21362558]
[1750039765577,1.17731668,2576.3,2576.0,3.21362558]
[1750039765978,0.77629,2576.1,2576.0,3.21362558]
[1750039766382,1.1715411,2576.1,2576.0,3.21362558]
[1750039767088,0.78206558,2576.3,2576.0,8.21362558]
[1750039767379,0.00582558,2576.3,2576.0,3.98993558]
[1750039767583,0.00582558,2576.3,2576.0,3.21362558]
[1750039767783,3.98409,2576.1,2576.0,5.58e-06]
[1750039768283,9.3793411,2576.1,2576.0,5.58e-06]
[1750039768483,2.08589,2576.1,2576.0,5.58e-06]
[1750039768787,0.77629,2576.1,2576.0,5.58e-06]
[1750039768985,0.77628,2576.2,2576.0,5.58e-06]
[1750039769182,0.77629,2576.1,2576.0,5.58e-06]
[1750039769783,2.08588,2576.2,2576.0,5.58e-06]
[1750039769983,0.77628,2576.2,2576.0,5.58e-06]
[1750039770183,0.00582558,2576.3,2576.0,5.58e-06]
[1750039770583,0.78205558,2576.3,2576.2,5.13333626]
[1750039770887,0.00582558,2576.3,2576.2,5.13333626]
[1750039771785,0.00582558,2576.3,2576.0,3.20780558]
[1750039771978,0.00582558,2576.3,2576.2,5.13333626]
[1750039772178,0.00582558,2576.3,2576.2,6.22187877]
[1750039772379,0.00582558,2576.3,2576.2,11.22187877]
[1750039773386,0.00582558,2576.3,2576.2,6.22187877]
[1750039773583,0.00582558,2576.3,2576.2,8.47560681]
[1750039773884,0.00582558,2576.3,2576.2,7.69934681]
[1750039774092,0.00582558,2576.3,2576.2,6.22187877]
[1750039774279,7.536,2577.3,2576.2,11.22187877]
[1750039774481,0.77611,2576.7,2576.6,1.11271979]
[1750039774790,0.7761,2576.8,2576.6,2.2012623]
[1750039775086,0.7761,2576.8,2576.7,1.08854251]
[1750039775285,0.00582558,2577.0,2576.7,2.2012623]
[1750039775496,0.77607,2576.9,2576.8,4.29634251]
[1750039775990,0.00582558,2577.0,2576.8,4.29634251]
[1750039776186,0.78184558,2577.0,2576.9,1.08854251]
[1750039778179,0.00582558,2577.0,2576.9,1.08854251]
[1750039778381,0.00582558,2577.0,2576.9,4.3389123]
[1750039778682,0.77591,2577.4,2577.1,0.77599]
[1750039778882,0.77591,2577.4,2577.2,5.40964031]
[1750039779091,0.77591,2577.4,2577.3,1.08854251]
[1750039779294,1.2615,2578.0,2577.3,8.62354251]
[1750039779589,0.77584,2577.6,2577.5,3.2078]
[1750039779794,0.77584,2577.6,2577.5,4.29634251]
[1750039780689,1.1710911,2577.6,2577.5,1.08854251]
[1750039780885,0.77587,2577.5,2577.4,0.00582558]
[1750039781190,0.77587,2577.5,2577.4,5.58e-06]
[1750039781385,1.93993,2577.2,2576.7,0.71805228]
[1750039781688,0.77623,2576.4,2576.2,1.48362638]
[1750039781895,0.77619,2576.5,2576.3,1.10094585]
[1750039782089,0.77619,2576.5,2576.4,1.10094585]
[1750039782289,3.2078,2576.8,2576.4,1.10094585]
[1750039782492,0.77612,2576.7,2576.5,1.10094585]
[1750039782793,0.77612,2576.7,2576.6,1.09899463]
[1750039782794,0.77613,2576.7,2576.6,1.09899463]
[1750039782994,0.7761,2576.8,2576.6,1.09899463]
[1750039783195,0.00582558,2576.9,2576.7,1.09899463]
[1750039783496,0.78187558,2576.9,2576.8,8.63277369]
[1750039783689,0.78187558,2576.9,2576.8,1.09877369]
[1750039784189,0.7761,2576.8,2576.5,7.534]
[1750039784494,0.78187558,2576.9,2576.6,1.09878531]
[1750039784692,0.77608,2576.8,2576.7,1.09878531]
[1750039785191,0.00582558,2576.9,2576.7,6.09878531]
[1750039785495,3.98967558,2576.9,2576.8,1.09878531]
[1750039785691,0.77614,2576.6,2576.5,7.534]
[1750039785886,0.77614,2576.6,2576.5,8.63287211]
[1750039786088,0.77613,2576.7,2576.5,8.63287211]
[1750039786290,0.77611,2576.8,2576.6,1.09887211]
[1750039786489,0.77608,2576.8,2576.7,1.09925339]
[1750039787390,0.00582558,2576.9,2576.7,1.09925339]
[1750039787689,0.78187558,2576.9,2576.8,0.22048082]
[1750039788000,0.00582558,2576.9,2576.8,0.99656082]
[1750039788197,0.00582558,2576.9,2576.8,3.2220004]
[1750039788493,3.98375,2577.3,2576.9,0.77604]
[1750039788690,3.98375,2577.3,2577.0,0.33591394]
[1750039788893,0.77596,2577.2,2577.1,0.33594023]
[1750039789093,0.77596,2577.2,2576.9,3.58744116]
[1750039789289,0.77595,2577.3,2577.0,0.77602]
[1750039789490,0.77596,2577.2,2577.1,0.33746486]
[1750039789801,0.77602,2577.0,2576.8,1.48310116]
[1750039790100,0.77602,2577.0,2576.9,7.534]
[1750039790390,0.77602,2577.0,2576.6,1.48310116]
[1750039790391,0.77611,2576.7,2576.6,1.48310116]
[1750039790596,0.77614,2576.6,2576.4,1.48310116]
[1750039790792,0.77614,2576.6,2576.3,10.54148516]
[1750039790793,3.2078,2576.7,2576.3,7.53982558]
[1750039790992,0.77616,2576.6,2576.3,11.52383558]
[1750039791192,0.77616,2576.6,2576.3,12.84613558]
[1750039791391,1.3695,2576.9,2576.3,12.84613558]
[1750039791597,0.77619,2576.5,2576.3,7.53982558]
[1750039791798,0.77619,2576.5,2576.3,10.74762558]
[1750039792101,0.7762,2576.4,2576.3,12.06992558]
[1750039792402,0.77619,2576.5,2576.3,12.06992558]
[1750039792697,1.3695,2576.9,2576.3,12.84614558]
[1750039792893,4.5773,2576.9,2576.3,12.06992558]
[1750039793095,0.77618,2576.5,2576.3,12.06992558]
[1750039793402,0.7762,2576.4,2576.3,9.35420886]
[1750039793595,4.5773,2576.9,2576.3,9.35420886]
[1750039793897,0.77617,2576.5,2576.3,10.13042886]
[1750039794101,0.77616,2576.6,2576.4,0.7762]
[1750039794301,0.77615,2576.6,2576.4,0.77619]
[1750039794491,4.5773,2576.9,2576.3,9.35420886]
[1750039794798,0.77619,2576.5,2576.3,10.13043886]
[1750039795802,0.7762,2576.4,2576.3,9.35420886]
[1750039795998,0.77623,2576.3,2576.2,0.00582558]
[1750039796399,0.77622,2576.4,2576.2,0.00582558]
[1750039796598,0.77623,2576.3,2576.2,0.00582558]
[1750039796798,0.77622,2576.4,2576.2,0.78208558]
[1750039796997,0.77617,2576.5,2576.3,0.77621]
[1750039797301,3.98395,2576.6,2576.2,0.00582558]
[1750039797501,3.2078,2576.6,2576.5,0.77617]
[1750039797892,0.6577,2577.3,2576.5,9.527]
[1750039798098,3.8655,2577.3,2576.5,6.01010116]
[1750039798297,0.77609,2576.8,2576.3,8.31022]
[1750039798495,0.77607,2576.9,2576.3,8.31022]
[1750039798693,2.03247,2576.9,2576.4,0.7762]
[1750039798997,1.2564,2576.9,2576.3,7.534]
[1750039799301,1.2564,2576.9,2576.6,0.77614]
[1750039799498,1.2564,2576.9,2576.5,0.77616]
[1750039799803,3.98382,2577.0,2576.4,1.3228]
[1750039799804,3.2078,2577.0,2576.7,0.7761]
[1750039800104,0.77598,2577.2,2576.8,0.77608]
[1750039800310,0.6577,2577.3,2577.0,0.77601]
[1750039800604,0.6577,2577.3,2576.7,8.7178]
[1750039800903,0.00582558,2577.4,2577.3,0.77593]
[1750039801097,1.2564,2577.9,2577.4,0.77588]
[1750039801098,2.03217,2577.9,2577.4,0.77588]
[1750039801295,2.03217,2577.9,2577.5,1.10591835]
[1750039801600,2.03217,2577.9,2577.4,12.86555222]
[1750039801601,0.7758,2577.8,2577.4,3.2078]
[1750039801903,1.3688,2577.7,2577.4,3.2078]
[1750039802096,0.00582558,2577.8,2577.6,0.77584]
[1750039802293,0.00582558,2577.8,2577.7,0.77581]
[1750039802493,0.00582558,2577.8,2577.7,1.10124394]
[1750039802698,0.00582558,2577.8,2577.7,0.77581]
[1750039803098,0.00582558,2577.8,2577.7,1.10110762]
[1750039803301,3.2078,2578.1,2578.0,0.77572]
[1750039803601,3.2078,2578.4,2578.0,0.7757]
[1750039803805,3.2078,2578.4,2577.7,15.73613626]
[1750039804004,3.2078,2578.4,2577.8,1.10374978]
[1750039804202,3.2078,2578.4,2577.8,1.3482]
[1750039804406,3.2078,2578.4,2577.4,3.21362558]
[1750039804407,3.2078,2578.0,2577.4,3.21362558]
[1750039804602,3.98354,2578.0,2577.5,0.77587]
[1750039804905,0.77583,2577.7,2577.4,3.21362558]
[1750039805107,3.2078,2577.6,2577.5,0.32528138]
[1750039805401,3.2078,2577.6,2577.4,0.00582558]
[1750039805402,0.77587,2577.5,2577.4,0.00582558]
[1750039805799,3.98366,2577.6,2577.4,0.00582558]
[1750039806000,0.77587,2577.5,2577.4,0.00582558]
[1750039808406,3.2078,2575.7,2574.1,0.30639315]
[1750039808606,3.2078,2574.4,2574.2,0.07769404]
[1750039808807,0.93347527,2574.3,2574.2,0.07769404]
[1750039809205,0.00582558,2574.5,2574.2,9.85697146]
[1750039809412,0.00582558,2574.5,2574.2,0.07769404]
[1750039809710,0.00582558,2574.5,2574.4,4.45309813]
[1750039809909,0.00582558,2574.5,2574.4,4.53078613]
[1750039810105,0.00582558,2574.5,2574.4,9.53078613]
[1750039810417,3.2078,2575.1,2574.4,4.53078613]
[1750039810713,3.2078,2575.1,2574.8,4.45309813]
[1750039810907,3.2078,2575.1,2575.0,4.45309813]
[1750039811211,3.2078,2575.1,2575.0,4.53076803]
[1750039811708,3.2078,2575.1,2575.0,4.89178581]
[1750039812011,3.2078,2575.1,2575.0,4.53076803]
[1750039812605,3.9844,2575.1,2575.0,4.53076803]
[1750039812806,3.2078,2575.1,2575.0,4.53076803]
[1750039813502,3.9844,2575.1,2575.0,0.0776699]
[1750039814613,3.9844,2575.1,2575.0,9.9e-06]
[1750039814911,4.94590023,2575.1,2575.0,9.9e-06]
[1750039815108,3.9844,2575.1,2575.0,9.9e-06]
[1750039815711,0.77667,2574.9,2574.5,1.3379]
[1750039815907,0.77664,2575.0,2574.5,1.3379]
[1750039816108,0.00582,2575.3,2575.0,4.45309813]
[1750039816305,0.78236,2575.3,2575.2,4.45309813]
[1750039816804,0.77663,2575.0,2574.9,1.3379]
[1750039817005,0.77663,2575.0,2574.9,4.45309813]
[1750039817610,0.77672,2574.7,2574.5,1.2795]
[1750039817809,3.98452,2574.7,2574.5,1.2795]
[1750039818011,3.98452,2574.7,2574.6,4.45309813]
[1750039818409,0.77672,2574.7,2574.6,4.45309813]
[1750039818706,3.98452,2574.7,2574.6,4.45309813]
[1750039819111,3.2078,2574.7,2574.1,0.6423]
[1750039819320,3.2078,2574.7,2574.5,4.45309813]
[1750039819321,0.77675,2574.6,2574.5,4.45309813]
[1750039821018,3.2078,2574.7,2574.5,4.45309813]
[1750039821216,0.77675,2574.6,2574.5,4.45309813]
[1750039822115,0.77687,2574.2,2574.1,1.9218]
[1750039822418,0.77686,2574.3,2574.1,1.2795]
[1750039822721,0.77687,2574.2,2574.1,1.2795]
[1750039823218,0.77687,2574.2,2574.1,5.73259813]
[1750039824118,0.77685,2574.3,2574.1,5.73259813]
[1750039824315,0.77685,2574.3,2574.2,1.3255]
[1750039824516,0.77685,2574.3,2574.2,5.77859813]
[1750039830419,3.2078,2574.4,2574.2,5.77859813]
[1750039830720,3.98462,2574.4,2574.3,5.72129813]
[1750039831113,0.77682,2574.4,2574.3,5.72129813]
[1750039831714,3.98461,2574.4,2574.3,5.72129813]
[1750039831915,3.9845,2574.8,2574.3,5.72129813]
[1750039832116,3.98449,2574.8,2574.7,4.45309813]
[1750039832716,3.2078,2574.8,2574.7,4.45309813]
[1750039832921,3.9845,2574.8,2574.7,4.45309813]
[1750039833422,3.2078,2574.8,2574.7,4.45309813]
[1750039833618,3.2078,2575.2,2574.7,4.45309813]
[1750039833823,0.77664,2575.0,2574.9,4.45309813]
[1750039834019,0.77661,2575.1,2574.9,4.45309813]
[1750039834327,0.77657,2575.2,2575.1,4.45309813]
[1750039835122,0.78237,2575.3,2575.1,4.45309813]
[1750039835419,3.2078,2575.2,2574.7,0.654]
[1750039835621,0.77666,2574.9,2574.8,4.45309813]
[1750039835828,0.77669,2574.8,2574.7,5.10709813]
[1750039836021,0.77669,2574.8,2574.7,0.654]
[1750039836826,0.77669,2574.8,2574.7,5.10709813]
[1750039837030,0.77669,2574.8,2574.7,0.654]
[1750039837328,3.2078,2575.0,2574.3,7.635]
[1750039837524,0.7768,2574.5,2574.4,1.2717]
[1750039837927,0.7768,2574.5,2574.4,5.72479813]
[1750039838333,0.7768,2574.5,2574.4,4.45309813]
[1750039840038,3.98455,2574.6,2574.4,4.45309813]
[1750039840230,3.98455,2574.6,2574.5,5.70909813]
[1750039842338,3.2078,2574.6,2574.5,5.70909813]
[1750039842544,0.77671,2574.8,2574.5,6.48585813]
[1750039842735,1.71022346,2574.7,2574.5,2.03277]
[1750039843048,3.98446,2574.9,2574.8,4.45309813]
[1750039843239,4.91794781,2574.9,2574.8,4.45309813]
[1750039846848,0.77669,2574.8,2574.7,1.3461]
[1750039847044,1.71017781,2574.8,2574.7,1.3461]
[1750039847243,0.77676,2574.6,2574.4,7.635]
[1750039847444,0.77676,2574.6,2574.5,1.2877]
[1750039847643,0.77676,2574.6,2574.5,5.74079813]
[1750039847843,3.98456,2574.6,2574.5,4.45309813]
[1750039848040,0.77687,2574.2,2574.1,10.1777]
[1750039848453,0.77687,2574.2,2574.1,14.63079813]
[1750039852150,0.77676,2574.6,2574.3,0.77682]
[1750039852360,0.77672,2574.7,2574.6,4.45309813]
[1750039852752,1.94157,2575.0,2574.4,1.3638]
[1750039852955,0.77672,2574.7,2574.6,4.45309813]
[1750039853149,5.52659223,2575.1,2574.5,0.77675]
[1750039853150,3.2078,2575.1,2574.5,0.77675]
[1750039853349,0.77664,2575.0,2574.9,4.45309813]
[1750039854051,3.98442,2575.1,2574.9,4.45309813]
[1750039854257,3.9844,2575.1,2575.0,5.74339813]
[1750039854463,3.2078,2575.1,2575.0,5.74339813]
[1750039854962,0.00582,2575.3,2575.0,6.52002813]
[1750039855159,0.00582,2575.3,2575.2,5.22966813]
[1750039855360,0.00582,2575.3,2575.2,47.31996813]
[1750039855756,0.00582,2575.3,2575.2,6.51996813]
[1750039856062,0.00582,2575.3,2575.2,5.74339813]
[1750039856457,0.00582,2575.3,2575.2,6.51996813]
[1750039856763,3.2078,2575.7,2575.4,0.7765]
[1750039856964,3.2078,2575.7,2575.6,4.45309813]
[1750039857255,3.98422,2575.7,2575.6,4.45309813]
[1750039857654,3.2078,2575.7,2575.6,4.45309813]
[1750039858049,3.2078,2576.4,2575.6,4.45309813]
[1750039858263,3.98409,2576.1,2576.0,4.45309813]
[1750039858761,0.77637,2575.9,2575.7,1.3065]
[1750039858957,3.2078,2576.1,2575.7,1.3065]
[1750039858958,0.77632,2576.0,2575.9,4.45309813]
[1750039859157,0.77638,2575.9,2575.8,4.45309813]
[1750039860058,3.2078,2576.1,2575.4,0.00582558]
[1750039860255,0.77647,2575.5,2575.4,0.00582558]
[1750039860559,3.2078,2575.7,2575.4,4.45892371]
[1750039860756,3.2078,2576.3,2575.6,4.45309813]
[1750039861065,3.2078,2577.0,2576.5,4.45309813]
[1750039861359,0.77613,2576.7,2576.5,4.45309813]
[1750039861565,3.2078,2577.0,2576.5,4.45309813]
[1750039861754,0.77614,2576.6,2576.5,4.45309813]
[1750039862160,3.2078,2577.0,2576.5,4.45309813]
[1750039862161,0.77613,2576.7,2576.5,4.45309813]
[1750039862359,0.77611,2576.8,2576.6,4.45309813]
[1750039862558,0.77609,2576.8,2576.6,4.45309813]
[1750039862860,0.77613,2576.7,2576.3,0.77623]
[1750039863066,0.77613,2576.7,2576.6,4.45309813]
[1750039863562,0.77613,2576.7,2576.4,1.3606]
[1750039863770,0.77613,2576.7,2576.6,4.45309813]
[1750039863963,3.2078,2577.0,2576.6,4.45309813]
[1750039864160,3.2078,2577.0,2576.4,2.13679]
[1750039864161,0.7761,2576.8,2576.4,2.13679]
[1750039864460,0.77612,2576.7,2576.6,4.45309813]
[1750039864861,0.77617,2576.5,2576.4,1.3606]
[1750039865065,3.2078,2577.0,2576.6,4.45309813]
[1750039865563,0.77614,2576.6,2576.4,1.3606]
[1750039865870,0.77613,2576.7,2576.6,4.45309813]
[1750039866069,1.3026,2577.3,2576.9,4.45309813]
[1750039866263,0.77603,2577.0,2576.9,4.45309813]
[1750039866661,0.77605,2576.9,2576.8,5.58e-06]
[1750039867064,12.20734659,2576.9,2576.8,5.58e-06]
[1750039867261,1.94053,2576.4,2575.4,0.6211]
[1750039867466,3.2078,2576.1,2575.6,4.45309813]
[1750039867661,0.77643,2575.7,2575.5,1.2392]
[1750039867865,0.77643,2575.7,2575.6,4.45309813]
[1750039868064,3.98423,2575.7,2575.6,4.45309813]
[1750039868374,0.77644,2575.6,2575.5,1.2392]
[1750039868867,0.77644,2575.6,2575.5,5.69229813]
[1750039869870,0.77647,2575.5,2575.4,0.00582558]
[1750039871872,0.77647,2575.5,2575.4,5.58e-06]
[1750039872565,2.13907,2575.5,2575.4,5.58e-06]
[1750039872866,0.77647,2575.5,2575.4,5.58e-06]
[1750039873070,8.17947,2575.5,2575.4,5.58e-06]
[1750039873863,13.17947,2575.5,2575.4,5.58e-06]
[1750039875168,14.47487,2575.5,2575.4,5.58e-06]
[1750039877775,8.17947,2575.5,2575.4,5.58e-06]
[1750039878675,8.18047,2575.5,2575.4,5.58e-06]
[1750039879468,0.77647,2575.5,2575.4,5.58e-06]
[1750039881273,5.77647,2575.5,2575.4,5.58e-06]
[1750039881475,7.08897,2575.5,2575.4,5.58e-06]
[1750039881782,40.33897,2575.5,2575.4,5.58e-06]
[1750039881975,5.77647,2575.5,2575.4,5.58e-06]
[1750039882171,39.02647,2575.5,2575.4,5.58e-06]
[1750039883682,0.77647,2575.5,2575.4,5.58e-06]
[1750039883875,5.77647,2575.5,2575.4,5.58e-06]
[1750039884076,39.02547,2575.5,2575.4,5.58e-06]
[1750039884280,34.02547,2575.5,2575.4,5.58e-06]
[1750039885582,39.02547,2575.5,2575.4,5.58e-06]
[1750039885984,40.28957,2575.5,2575.4,5.58e-06]
[1750039886972,14.44457,2575.5,2575.4,5.58e-06]
[1750039887179,39.02447,2575.5,2575.4,5.58e-06]
[1750039887378,35.31357,2575.5,2575.4,5.58e-06]
[1750039887777,40.31357,2575.5,2575.4,5.58e-06]
[1750039890473,40.31357,2575.5,2573.9,3.98475]
[1750039890474,0.77695,2574.0,2573.6,3.2078]
[1750039890676,26.62081,2574.4,2574.3,4.45309813]
[1750039890886,29.82861,2574.4,2574.3,4.45309813]
[1750039891278,0.77684,2574.3,2574.2,1.3595]
[1750039891680,0.77684,2574.3,2574.2,5.81259813]
[1750039892481,7.405,2574.3,2574.0,0.00582558]
[1750039892676,3.9847,2574.1,2574.0,4.45892371]
[1750039892883,29.8287,2574.1,2574.0,4.45892371]
[1750039894687,0.77702,2573.7,2573.6,0.6744]
[1750039895088,0.77702,2573.7,2573.6,10.12749813]
[1750039896086,0.77702,2573.7,2573.6,5.12749813]
[1750039899391,0.77708,2573.5,2573.4,0.64542558]
[1750039899581,3.98488,2573.5,2573.4,0.64542558]
[1750039899779,3.2078,2573.5,2573.4,5.09852371]
[1750039899978,3.98488,2573.5,2573.4,5.09852371]
[1750039900289,3.98488,2573.5,2573.4,0.64542558]
[1750039900486,0.77729,2572.8,2572.7,30.887]
[1750039900792,3.2078,2573.0,2572.9,4.45309813]
[1750039901085,3.2078,2573.0,2572.4,7.4]
[1750039901086,0.77728,2572.9,2572.6,4.34500469]
[1750039901289,3.2078,2573.0,2572.9,4.45309813]
[1750039901592,3.98503,2573.0,2572.9,4.45309813]
[1750039903086,0.77729,2572.8,2572.7,0.00582558]
[1750039903589,0.77729,2572.8,2572.7,4.45892371]
[1750039905893,0.77729,2572.8,2572.7,5.76552371]
[1750039906087,3.2078,2573.0,2572.7,5.76552371]
[1750039906288,3.98503,2573.0,2572.9,4.45309813]
[1750039906483,0.77726,2572.9,2572.8,5.75969813]
[1750039909389,3.2078,2573.0,2572.8,10.10470282]
[1750039909598,0.77722,2573.0,2572.9,4.45309813]
[1750039909793,0.77722,2573.0,2572.9,5.77469813]
[1750039911397,0.77721,2573.1,2572.9,5.77469813]
[1750039911697,0.77721,2573.1,2573.0,5.13689813]
[1750039911903,0.77721,2573.1,2573.0,6.45259813]
[1750039912493,0.78300558,2573.2,2573.0,6.45259813]
[1750039912697,0.78300558,2573.2,2573.1,8.79810282]
[1750039913196,0.78298558,2573.2,2573.1,8.79810282]
[1750039913397,0.78298558,2573.2,2573.1,4.45309813]
[1750039914295,23.495,2573.9,2573.1,9.45309813]
[1750039914500,0.77695,2573.9,2573.8,4.45309813]
[1750039918614,3.2078,2574.0,2573.8,8.79810282]
[1750039918918,3.98474,2574.0,2573.9,5.74019813]
[1750039919306,3.98474,2574.0,2573.9,5.48577372]
[1750039919614,0.00582558,2574.1,2573.9,5.48577372]
[1750039919910,0.00582558,2574.1,2574.0,4.45309813]
[1750039920710,0.00582558,2574.1,2574.0,5.23001813]
[1750039921304,0.00582558,2574.1,2574.0,4.45309813]
[1750039921516,0.00582558,2574.1,2574.0,5.23001813]
[1750039921716,0.00582558,2574.1,2574.0,10.23001813]
[1750039922217,0.00582558,2574.1,2574.0,9.45309813]
[1750039922410,0.00582558,2574.1,2574.0,11.53651813]
[1750039923411,0.78271558,2574.1,2574.0,5.75959813]
[1750039923612,0.78271558,2574.1,2573.3,1.109754]
[1750039923613,1.94232,2574.0,2573.3,1.109754]
[1750039923810,0.7772,2573.1,2573.0,0.97918317]
[1750039924020,0.7772,2573.1,2573.0,1.9539]
[1750039924318,0.7772,2573.1,2573.0,4.84271813]
[1750039924728,0.7772,2573.1,2573.0,3.55361813]
[1750039924923,3.2078,2573.4,2573.0,3.55361813]
[1750039925118,0.77713,2573.3,2573.2,3.55361813]
[1750039925315,3.98493,2573.3,2573.2,3.55361813]
[1750039925515,0.77716,2573.2,2572.9,5.63410469]
[1750039925809,0.77723,2573.0,2572.9,5.63410469]
[1750039926009,3.98503,2573.0,2572.9,5.63410469]
[1750039926218,0.77723,2573.0,2572.9,9.18772282]
[1750039927214,0.77723,2573.0,2572.7,0.00582558]
[1750039927215,3.2078,2573.0,2572.7,0.00582558]
[1750039927418,0.77727,2572.9,2572.7,0.00582558]
[1750039927620,0.77729,2572.8,2572.7,0.00582558]
[1750039928223,0.77729,2572.8,2572.7,3.55944371]
[1750039933826,3.2078,2573.0,2571.2,5.63993225]
[1750039933827,1.94318,2572.9,2572.2,7.385]
[1750039934022,0.77741,2572.4,2572.3,3.55361813]
[1750039934219,0.77741,2572.4,2572.2,3.55361813]
[1750039934220,3.2078,2572.4,2572.2,3.55361813]
[1750039934526,3.2078,2572.4,2571.8,3.55361813]
[1750039934527,0.77756,2571.9,2571.8,3.55361813]
[1750039934820,0.77759,2571.8,2571.7,1.2778]
[1750039935219,0.77759,2571.8,2571.7,4.83141813]
[1750039935527,3.98538,2571.9,2571.7,4.83141813]
[1750039935825,3.98538,2571.9,2571.8,4.90161813]
[1750039936520,3.98536,2571.9,2571.8,4.90161813]
[1750039936721,0.77756,2571.9,2571.8,4.90161813]
[1750039937721,0.77755,2572.0,2571.8,4.90161813]
[1750039937925,0.00582558,2572.1,2571.8,4.90161813]
[1750039937926,0.78332558,2572.1,2572.0,3.55361813]
[1750039938324,0.77756,2571.9,2571.8,1.348]
[1750039938722,0.77756,2571.9,2571.8,4.90161813]
[1750039939324,0.77756,2571.9,2571.8,3.55361813]
[1750039940230,0.77762,2571.7,2571.6,0.00582558]
[1750039940424,3.98542,2571.7,2571.6,0.00582558]
[1750039940731,1.9442,2571.5,2570.5,7.55280469]
[1750039940924,0.77789,2570.9,2570.5,18.32998469]
[1750039941119,0.77789,2570.8,2570.5,13.207]
[1750039941325,3.2078,2571.3,2570.9,3.55361813]
[1750039941532,3.98551,2571.4,2571.3,3.55361813]
[1750039941736,0.7778,2571.1,2571.0,1.3083]
[1750039942028,0.77786,2570.9,2570.8,0.00582558]
[1750039943029,0.77806,2570.3,2569.9,1.3315]
[1750039943222,0.77806,2570.3,2570.2,3.55361813]
[1750039943626,3.2078,2570.5,2569.9,42.1315]
[1750039943829,1.2914,2570.6,2570.2,3.55361813]
[1750039944020,3.98584,2570.3,2570.2,3.55361813]
[1750039944224,0.77813,2570.0,2569.9,0.68438374]
[1750039944431,3.98593,2570.0,2569.9,0.68438374]
[1750039944626,0.77812,2570.1,2569.9,3.55750187]
[1750039944825,0.77812,2570.1,2569.9,0.00388374]
[1750039945021,3.2078,2570.3,2570.0,3.55361813]
[1750039945320,0.77804,2570.3,2570.2,3.55361813]
[1750039945526,3.2078,2570.4,2570.2,3.55361813]
[1750039945721,0.77803,2570.4,2570.3,3.55361813]
[1750039945934,3.98583,2570.4,2570.3,3.55361813]